[Event "Titled Tuesday Blitz April 05 Early 2022"]
[White "Kosteniuk, Alexandra"]
[Black "Roberson, Peter T"]
[WhiteFideId "4128125"]
[BlackFideId "412384"]
[WhiteElo "2469"]
[BlackElo "2346"]
[Result "0-1"]
[Round "06"]
[TimeControl "180+1"]
[Date "2022.04.05"]
[WhiteClock "0:00:09"]
[BlackClock "0:00:05"]

1. d4 {[%clk 0:03:00]}  Nf6 {[%clk 0:02:57]} 2. Nf3 {[%clk 0:03:00]}  e6 {[%clk 0:02:57]} 3. c4 {[%clk 0:03:01]}  c5 {[%clk 0:02:57]} 4. g3 {[%clk 0:02:57]}  cxd4 {[%clk 0:02:57]} 5. Nxd4 {[%clk 0:02:56]}  Nc6 {[%clk 0:02:57]} 6. Bg2 {[%clk 0:02:56]}  Qb6 {[%clk 0:02:57]} 7. Nb5 {[%clk 0:02:51]}  d5 {[%clk 0:02:57]} 8. N1c3 {[%clk 0:02:48]}  Bc5 {[%clk 0:02:53]} 9. Na4 {[%clk 0:02:30]}  Qa5+ {[%clk 0:02:40]} 10. Bd2 {[%clk 0:02:24]}  Bb4 {[%clk 0:02:41]} 11. Bxb4 {[%clk 0:01:39]}  Qxb4+ {[%clk 0:02:41]} 12. Kf1 {[%clk 0:01:28]}  O-O {[%clk 0:02:37]} 13. a3 {[%clk 0:01:28]}  Qe7 {[%clk 0:02:36]} 14. c5 {[%clk 0:01:16]}  e5 {[%clk 0:02:21]} 15. Nd6 {[%clk 0:01:14]}  Be6 {[%clk 0:02:19]} 16. b4 {[%clk 0:01:11]}  b6 {[%clk 0:02:13]} 17. Rc1 {[%clk 0:01:06]}  bxc5 {[%clk 0:02:11]} 18. bxc5 {[%clk 0:01:06]}  Rab8 {[%clk 0:01:59]} 19. Nc3 {[%clk 0:01:04]}  Nd4 {[%clk 0:01:56]} 20. g4 {[%clk 0:00:35]}  Bxg4 {[%clk 0:01:49]} 21. Rg1 {[%clk 0:00:29]}  Qe6 {[%clk 0:01:40]} 22. f3 {[%clk 0:00:25]}  Bh5 {[%clk 0:01:28]} 23. Rb1 {[%clk 0:00:18]}  Bg6 {[%clk 0:01:25]} 24. Rxb8 {[%clk 0:00:16]}  Rxb8 {[%clk 0:01:25]} 25. Qa4 {[%clk 0:00:16]}  Qd7 {[%clk 0:00:59]} 26. Qxd7 {[%clk 0:00:15]}  Nxd7 {[%clk 0:01:00]} 27. Nxd5 {[%clk 0:00:13]}  Nxc5 {[%clk 0:00:55]} 28. Kf2 {[%clk 0:00:13]}  Rb2 {[%clk 0:00:53]} 29. Nc3 {[%clk 0:00:12]}  f5 {[%clk 0:00:37]} 30. Bf1 {[%clk 0:00:09]}  Kf8 {[%clk 0:00:34]} 31. Nc8 {[%clk 0:00:07]}  a5 {[%clk 0:00:33]} 32. Nd6 {[%clk 0:00:07]}  Rb3 {[%clk 0:00:30]} 33. Nd5 {[%clk 0:00:06]}  Rxa3 {[%clk 0:00:28]} 34. Nc4 {[%clk 0:00:07]}  Ra1 {[%clk 0:00:27]} 35. Nxe5 {[%clk 0:00:07]}  a4 {[%clk 0:00:25]} 36. Nxg6+ {[%clk 0:00:07]}  hxg6 {[%clk 0:00:25]} 37. Rxg6 {[%clk 0:00:08]}  a3 {[%clk 0:00:25]} 38. Rb6 {[%clk 0:00:08]}  a2 {[%clk 0:00:23]} 39. Rb8+ {[%clk 0:00:08]}  Kf7 {[%clk 0:00:23]} 40. Ra8 {[%clk 0:00:09]}  Ndb3 {[%clk 0:00:19]} 41. Ra7+ {[%clk 0:00:08]}  Ke6 {[%clk 0:00:18]} 42. Nc3 {[%clk 0:00:09]}  Rxf1+ {[%clk 0:00:17]} 43. Kxf1 {[%clk 0:00:09]}  a1=Q+ {[%clk 0:00:18]} 44. Rxa1 {[%clk 0:00:09]}  Nxa1 {[%clk 0:00:19]} 45. Kf2 {[%clk 0:00:09]}  Nc2 {[%clk 0:00:19]} 46. e3 {[%clk 0:00:09]}  Nb4 {[%clk 0:00:18]} 47. Ne2 {[%clk 0:00:09]}  Ncd3+ {[%clk 0:00:18]} 48. Kg3 {[%clk 0:00:09]}  Nd5 {[%clk 0:00:13]} 49. e4 {[%clk 0:00:09]}  f4+ {[%clk 0:00:14]} 50. Kg4 {[%clk 0:00:09]}  Ne3+ {[%clk 0:00:13]} 51. Kg5 {[%clk 0:00:08]}  Ke5 {[%clk 0:00:14]} 52. h4 {[%clk 0:00:08]}  Ne1 {[%clk 0:00:14]} 53. Ng1 {[%clk 0:00:07]}  Nc4 {[%clk 0:00:08]} 54. h5 {[%clk 0:00:07]}  Nd2 {[%clk 0:00:09]} 55. Kg6 {[%clk 0:00:07]}  Nexf3 {[%clk 0:00:09]} 56. Ne2 {[%clk 0:00:07]}  Nh4+ {[%clk 0:00:05]} 57. Kxg7 {[%clk 0:00:08]}  f3 {[%clk 0:00:06]} 58. Ng3 {[%clk 0:00:07]}  Nxe4 {[%clk 0:00:06]} 59. Nf1 {[%clk 0:00:07]}  f2 {[%clk 0:00:05]} 60. h6 {[%clk 0:00:07]}  Nf5+ {[%clk 0:00:03]} 61. Kg6 {[%clk 0:00:07]}  Nxh6 {[%clk 0:00:04]} 62. Kxh6 {[%clk 0:00:08]}  Kf4 {[%clk 0:00:05]} 63. Kh5 {[%clk 0:00:08]}  Ng3+ {[%clk 0:00:04]} 64. Kh4 {[%clk 0:00:07]}  Nxf1 {[%clk 0:00:05]} 65. Kh3 {[%clk 0:00:08]}  Ne3 {[%clk 0:00:05]} 66. Kh2 {[%clk 0:00:08]}  Kf3 {[%clk 0:00:04]} 67. Kh1 {[%clk 0:00:08]}  f1=Q+ {[%clk 0:00:04]} 68. Kh2 {[%clk 0:00:09]}  Qg2# {[%clk 0:00:05]} 0-1


[Site "https://www.chess.com"]

[Event "Titled Tuesday Blitz April 05 Early 2022"]
[White "Li, Xueyi"]
[Black "Mogirzan, Matei-Valeriu"]
[WhiteFideId "8605912"]
[BlackFideId "1257455"]
[WhiteElo "2091"]
[BlackElo "1733"]
[Result "1-0"]
[Round "06"]
[TimeControl "180+1"]
[Date "2022.04.05"]
[WhiteClock "0:00:11"]
[BlackClock "0:00:06"]

1. d4 {[%clk 0:03:00]}  f6 {[%clk 0:02:55]} 2. e4 {[%clk 0:02:57]}  Kf7 {[%clk 0:02:55]} 3. Nf3 {[%clk 0:02:51]}  e6 {[%clk 0:02:55]} 4. c4 {[%clk 0:02:50]}  c5 {[%clk 0:02:53]} 5. Nc3 {[%clk 0:02:43]}  d6 {[%clk 0:02:52]} 6. dxc5 {[%clk 0:02:42]}  Nc6 {[%clk 0:02:50]} 7. cxd6 {[%clk 0:02:39]}  Bxd6 {[%clk 0:02:46]} 8. Be2 {[%clk 0:02:33]}  a6 {[%clk 0:02:42]} 9. O-O {[%clk 0:02:22]}  g5 {[%clk 0:02:41]} 10. e5 {[%clk 0:02:20]}  Nxe5 {[%clk 0:02:24]} 11. Nxe5+ {[%clk 0:02:19]}  fxe5 {[%clk 0:02:25]} 12. Ne4 {[%clk 0:02:18]}  Be7 {[%clk 0:02:22]} 13. Qxd8 {[%clk 0:02:17]}  Bxd8 {[%clk 0:02:23]} 14. Bxg5 {[%clk 0:02:10]}  Nf6 {[%clk 0:02:18]} 15. Rad1 {[%clk 0:01:45]}  Be7 {[%clk 0:02:12]} 16. Nxf6 {[%clk 0:01:39]}  Bxf6 {[%clk 0:02:12]} 17. Bxf6 {[%clk 0:01:37]}  Kxf6 {[%clk 0:02:12]} 18. f4 {[%clk 0:01:37]}  e4 {[%clk 0:02:12]} 19. Bg4 {[%clk 0:01:36]}  b5 {[%clk 0:02:11]} 20. cxb5 {[%clk 0:01:35]}  axb5 {[%clk 0:02:12]} 21. a3 {[%clk 0:01:34]}  Rg8 {[%clk 0:02:09]} 22. Bh3 {[%clk 0:01:33]}  b4 {[%clk 0:02:06]} 23. axb4 {[%clk 0:01:31]}  Ra2 {[%clk 0:02:06]} 24. Rf2 {[%clk 0:01:30]}  Ba6 {[%clk 0:01:58]} 25. g3 {[%clk 0:01:28]}  e3 {[%clk 0:01:56]} 26. Rc2 {[%clk 0:01:20]}  e2 {[%clk 0:01:46]} 27. Re1 {[%clk 0:01:20]}  Bb5 {[%clk 0:01:29]} 28. Rc5 {[%clk 0:01:16]}  Bd3 {[%clk 0:01:25]} 29. Re5 {[%clk 0:01:14]}  Rxb2 {[%clk 0:01:08]} 30. Rxe6+ {[%clk 0:01:12]}  Kf7 {[%clk 0:01:07]} 31. Kf2 {[%clk 0:01:12]}  Rxb4 {[%clk 0:01:02]} 32. Re3 {[%clk 0:01:08]}  Bc4 {[%clk 0:00:56]} 33. Re4 {[%clk 0:00:58]}  Re8 {[%clk 0:00:37]} 34. Rxe8 {[%clk 0:00:50]}  Kxe8 {[%clk 0:00:38]} 35. Bg4 {[%clk 0:00:51]}  Kf7 {[%clk 0:00:35]} 36. Bxe2 {[%clk 0:00:50]}  Rb2 {[%clk 0:00:34]} 37. Ke3 {[%clk 0:00:47]}  Be6 {[%clk 0:00:32]} 38. Bh5+ {[%clk 0:00:43]}  Kf6 {[%clk 0:00:32]} 39. Re2 {[%clk 0:00:43]}  Rb3+ {[%clk 0:00:29]} 40. Kd4 {[%clk 0:00:42]}  Rb4+ {[%clk 0:00:29]} 41. Kc5 {[%clk 0:00:41]}  Rc4+ {[%clk 0:00:25]} 42. Kd6 {[%clk 0:00:40]}  Rd4+ {[%clk 0:00:24]} 43. Kc7 {[%clk 0:00:35]}  Rc4+ {[%clk 0:00:19]} 44. Kb6 {[%clk 0:00:34]}  Rb4+ {[%clk 0:00:16]} 45. Kc5 {[%clk 0:00:32]}  Rc4+ {[%clk 0:00:16]} 46. Kb5 {[%clk 0:00:32]}  Rd4 {[%clk 0:00:14]} 47. Kb6 {[%clk 0:00:29]}  Rb4+ {[%clk 0:00:13]} 48. Ka5 {[%clk 0:00:28]}  Rd4 {[%clk 0:00:08]} 49. Re5 {[%clk 0:00:27]}  Rd2 {[%clk 0:00:04]} 50. Be2 {[%clk 0:00:23]}  Ra2+ {[%clk 0:00:03]} 51. Kb4 {[%clk 0:00:21]}  Rb2+ {[%clk 0:00:03]} 52. Kc3 {[%clk 0:00:21]}  Rb3+ {[%clk 0:00:03]} 53. Kc2 {[%clk 0:00:21]}  Ra3 {[%clk 0:00:02]} 54. Kd2 {[%clk 0:00:20]}  Ra2+ {[%clk 0:00:02]} 55. Ke1 {[%clk 0:00:20]}  Ra1+ {[%clk 0:00:02]} 56. Kf2 {[%clk 0:00:20]}  Ra2 {[%clk 0:00:03]} 57. g4 {[%clk 0:00:20]}  Ra3 {[%clk 0:00:03]} 58. Re3 {[%clk 0:00:20]}  Ra2 {[%clk 0:00:02]} 59. h4 {[%clk 0:00:19]}  Kf7 {[%clk 0:00:02]} 60. f5 {[%clk 0:00:19]}  Bc4 {[%clk 0:00:03]} 61. g5 {[%clk 0:00:14]}  h6 {[%clk 0:00:02]} 62. Kf3 {[%clk 0:00:10]}  Bxe2+ {[%clk 0:00:02]} 63. Rxe2 {[%clk 0:00:10]}  Ra4 {[%clk 0:00:02]} 64. Re4 {[%clk 0:00:10]}  Ra3+ {[%clk 0:00:02]} 65. Kf4 {[%clk 0:00:10]}  h5 {[%clk 0:00:02]} 66. Rb4 {[%clk 0:00:10]}  Rh3 {[%clk 0:00:02]} 67. Rb7+ {[%clk 0:00:09]}  Ke8 {[%clk 0:00:02]} 68. Ke5 {[%clk 0:00:10]}  Rxh4 {[%clk 0:00:02]} 69. g6 {[%clk 0:00:10]}  Rh1 {[%clk 0:00:02]} 70. Kf6 {[%clk 0:00:10]}  h4 {[%clk 0:00:01]} 71. g7 {[%clk 0:00:11]}  Rg1 {[%clk 0:00:02]} 72. Rb8+ {[%clk 0:00:11]}  Kd7 {[%clk 0:00:01]} 73. g8=Q {[%clk 0:00:11]}  Rxg8 {[%clk 0:00:01]} 74. Rxg8 {[%clk 0:00:12]}  h3 {[%clk 0:00:02]} 75. Rh8 {[%clk 0:00:12]}  h2 {[%clk 0:00:03]} 76. Kg7 {[%clk 0:00:12]}  h1=N {[%clk 0:00:02]} 77. Rxh1 {[%clk 0:00:12]}  Ke7 {[%clk 0:00:02]} 78. f6+ {[%clk 0:00:13]}  Ke6 {[%clk 0:00:02]} 79. f7 {[%clk 0:00:13]}  Kf5 {[%clk 0:00:03]} 80. Rf1+ {[%clk 0:00:13]}  Kg5 {[%clk 0:00:04]} 81. f8=Q {[%clk 0:00:13]}  Kh5 {[%clk 0:00:05]} 82. Rh1+ {[%clk 0:00:13]}  Kg4 {[%clk 0:00:06]} 83. Rg1+ {[%clk 0:00:11]}  Kh3 {[%clk 0:00:06]} 84. Qh8# {[%clk 0:00:11]} 1-0


[Site "https://www.chess.com"]

[Event "Titled Tuesday Blitz April 05 Early 2022"]
[White "Manukian, Artak"]
[Black "Dovbnia, Nikita"]
[WhiteFideId "13301373"]
[BlackFideId "54104599"]
[WhiteElo "2362"]
[BlackElo "2111"]
[Result "1-0"]
[Round "06"]
[TimeControl "180+1"]
[Date "2022.04.05"]
[WhiteClock "0:00:06"]
[BlackClock "0:00:24"]

1. e4 {[%clk 0:03:00]}  c6 {[%clk 0:03:00]} 2. d4 {[%clk 0:03:00]}  d5 {[%clk 0:03:00]} 3. e5 {[%clk 0:03:00]}  Bf5 {[%clk 0:03:00]} 4. c4 {[%clk 0:03:01]}  dxc4 {[%clk 0:03:00]} 5. Bxc4 {[%clk 0:03:00]}  e6 {[%clk 0:03:00]} 6. Nc3 {[%clk 0:03:00]}  Ne7 {[%clk 0:03:00]} 7. Nf3 {[%clk 0:03:00]}  Nd5 {[%clk 0:03:01]} 8. O-O {[%clk 0:02:57]}  Be7 {[%clk 0:02:59]} 9. Qe2 {[%clk 0:02:56]}  Nd7 {[%clk 0:03:00]} 10. Ne4 {[%clk 0:02:55]}  N7b6 {[%clk 0:02:59]} 11. Bb3 {[%clk 0:02:55]}  O-O {[%clk 0:02:57]} 12. Rd1 {[%clk 0:02:50]}  Bxe4 {[%clk 0:02:57]} 13. Qxe4 {[%clk 0:02:49]}  Qc7 {[%clk 0:02:57]} 14. Bc2 {[%clk 0:02:45]}  g6 {[%clk 0:02:57]} 15. Bg5 {[%clk 0:02:41]}  Bxg5 {[%clk 0:02:47]} 16. Nxg5 {[%clk 0:02:42]}  h6 {[%clk 0:02:36]} 17. Nf3 {[%clk 0:02:26]}  Kg7 {[%clk 0:02:36]} 18. h4 {[%clk 0:02:23]}  Rh8 {[%clk 0:02:26]} 19. h5 {[%clk 0:02:23]}  g5 {[%clk 0:02:26]} 20. Nh2 {[%clk 0:02:20]}  Rae8 {[%clk 0:02:21]} 21. Ng4 {[%clk 0:02:20]}  Nd7 {[%clk 0:02:17]} 22. a3 {[%clk 0:02:10]}  a5 {[%clk 0:02:15]} 23. Rac1 {[%clk 0:02:02]}  Ne7 {[%clk 0:02:15]} 24. Rd3 {[%clk 0:01:58]}  Nf5 {[%clk 0:02:15]} 25. Rf3 {[%clk 0:01:56]}  Qc8 {[%clk 0:01:27]} 26. Rd1 {[%clk 0:01:26]}  Nb6 {[%clk 0:01:25]} 27. Nf6 {[%clk 0:01:20]}  Rd8 {[%clk 0:01:19]} 28. g4 {[%clk 0:01:07]}  Nh4 {[%clk 0:01:16]} 29. Rfd3 {[%clk 0:01:06]}  Nd5 {[%clk 0:01:13]} 30. Nxd5 {[%clk 0:01:02]}  exd5 {[%clk 0:01:12]} 31. Qe2 {[%clk 0:00:59]}  Rhe8 {[%clk 0:01:08]} 32. f4 {[%clk 0:00:54]}  f5 {[%clk 0:01:01]} 33. fxg5 {[%clk 0:00:46]}  hxg5 {[%clk 0:01:00]} 34. Rf1 {[%clk 0:00:37]}  f4 {[%clk 0:00:49]} 35. Kh2 {[%clk 0:00:25]}  f3 {[%clk 0:00:46]} 36. Rdxf3 {[%clk 0:00:18]}  Nxf3+ {[%clk 0:00:47]} 37. Qxf3 {[%clk 0:00:17]}  Rf8 {[%clk 0:00:47]} 38. Bf5 {[%clk 0:00:12]}  Qc7 {[%clk 0:00:42]} 39. Qe3 {[%clk 0:00:10]}  Kh6 {[%clk 0:00:42]} 40. Kh3 {[%clk 0:00:09]}  c5 {[%clk 0:00:41]} 41. e6 {[%clk 0:00:09]}  Rde8 {[%clk 0:00:35]} 42. dxc5 {[%clk 0:00:08]}  Qe7 {[%clk 0:00:31]} 43. Qe5 {[%clk 0:00:08]}  Rd8 {[%clk 0:00:28]} 44. Rf3 {[%clk 0:00:07]}  Rfe8 {[%clk 0:00:27]} 45. Rd3 {[%clk 0:00:07]}  Qxc5 {[%clk 0:00:24]} 46. Qf6# {[%clk 0:00:06]} 1-0


[Site "https://www.chess.com"]

[Event "Titled Tuesday Blitz April 05 Early 2022"]
[White "Matthes, Aaron"]
[Black "Mohammadian, Mohammad"]
[WhiteFideId "16227310"]
[BlackFideId "12566055"]
[WhiteElo "2335"]
[BlackElo "1544"]
[Result "1-0"]
[Round "06"]
[TimeControl "180+1"]
[Date "2022.04.05"]
[WhiteClock "0:01:08"]
[BlackClock "0:00:12"]

1. b3 {[%clk 0:03:00]}  Nf6 {[%clk 0:02:58]} 2. Bb2 {[%clk 0:03:01]}  g6 {[%clk 0:02:54]} 3. g4 {[%clk 0:03:01]}  h6 {[%clk 0:02:51]} 4. h4 {[%clk 0:02:50]}  Rg8 {[%clk 0:02:50]} 5. g5 {[%clk 0:02:47]}  hxg5 {[%clk 0:02:49]} 6. hxg5 {[%clk 0:02:48]}  Ne4 {[%clk 0:02:42]} 7. Nh3 {[%clk 0:02:42]}  e6 {[%clk 0:02:39]} 8. f4 {[%clk 0:02:37]}  f5 {[%clk 0:02:34]} 9. Bg2 {[%clk 0:02:34]}  d5 {[%clk 0:02:32]} 10. d3 {[%clk 0:02:32]}  Ng3 {[%clk 0:02:26]} 11. Rh2 {[%clk 0:02:30]}  Bd6 {[%clk 0:02:17]} 12. e3 {[%clk 0:02:29]}  Bd7 {[%clk 0:02:00]} 13. Nf2 {[%clk 0:02:27]}  Nc6 {[%clk 0:01:50]} 14. Qf3 {[%clk 0:02:22]}  Nh5 {[%clk 0:01:47]} 15. Rxh5 {[%clk 0:02:22]}  gxh5 {[%clk 0:01:47]} 16. Qxh5+ {[%clk 0:02:23]}  Kf8 {[%clk 0:01:39]} 17. Qh6+ {[%clk 0:02:19]}  Kf7 {[%clk 0:01:33]} 18. Bf3 {[%clk 0:02:17]}  Bf8 {[%clk 0:01:14]} 19. Bh5+ {[%clk 0:02:16]}  Ke7 {[%clk 0:01:13]} 20. Qh7+ {[%clk 0:02:15]}  Kd6 {[%clk 0:01:09]} 21. Qxg8 {[%clk 0:02:14]}  e5 {[%clk 0:01:02]} 22. Nc3 {[%clk 0:01:57]}  exf4 {[%clk 0:01:00]} 23. exf4 {[%clk 0:01:53]}  Qe7+ {[%clk 0:00:58]} 24. Kd2 {[%clk 0:01:50]}  Re8 {[%clk 0:00:57]} 25. Nb5+ {[%clk 0:01:44]}  Kc5 {[%clk 0:00:54]} 26. Ba3+ {[%clk 0:01:43]}  Nb4 {[%clk 0:00:53]} 27. Bxe8 {[%clk 0:01:13]}  Bxe8 {[%clk 0:00:48]} 28. Re1 {[%clk 0:01:07]}  Qd7 {[%clk 0:00:34]} 29. Qxf8+ {[%clk 0:01:06]}  Kxb5 {[%clk 0:00:33]} 30. Qxe8 {[%clk 0:01:04]}  Qxe8 {[%clk 0:00:33]} 31. Rxe8 {[%clk 0:01:05]}  Nc6 {[%clk 0:00:32]} 32. Re6 {[%clk 0:01:03]}  a6 {[%clk 0:00:30]} 33. Rxc6 {[%clk 0:01:03]}  bxc6 {[%clk 0:00:30]} 34. g6 {[%clk 0:01:04]}  c5 {[%clk 0:00:29]} 35. g7 {[%clk 0:01:05]}  Kc6 {[%clk 0:00:29]} 36. g8=Q {[%clk 0:01:06]}  c4 {[%clk 0:00:29]} 37. Qxd5+ {[%clk 0:01:07]}  Kb6 {[%clk 0:00:28]} 38. dxc4 {[%clk 0:01:08]}  a5 {[%clk 0:00:22]} 39. Bc5+ {[%clk 0:01:09]}  Ka6 {[%clk 0:00:12]} 40. Qc6# {[%clk 0:01:08]} 1-0


[Site "https://www.chess.com"]

[Event "Titled Tuesday Blitz April 05 Early 2022"]
[White "Miszler, Levente"]
[Black "Ianov, Viktor"]
[WhiteFideId "763276"]
[BlackFideId "14102730"]
[WhiteElo "1966"]
[BlackElo "2161"]
[Result "0-1"]
[Round "06"]
[TimeControl "180+1"]
[Date "2022.04.05"]
[WhiteClock "0:00:51"]
[BlackClock "0:01:12"]

1. Nf3 {[%clk 0:03:00]}  d6 {[%clk 0:02:59]} 2. c4 {[%clk 0:03:00]}  g6 {[%clk 0:02:59]} 3. g3 {[%clk 0:02:58]}  Bg7 {[%clk 0:02:59]} 4. Bg2 {[%clk 0:02:58]}  c5 {[%clk 0:02:59]} 5. Nc3 {[%clk 0:02:55]}  Nc6 {[%clk 0:02:59]} 6. O-O {[%clk 0:02:55]}  Nf6 {[%clk 0:02:59]} 7. d3 {[%clk 0:02:54]}  O-O {[%clk 0:02:58]} 8. a3 {[%clk 0:02:55]}  Qd7 {[%clk 0:02:54]} 9. Rb1 {[%clk 0:02:56]}  b6 {[%clk 0:02:54]} 10. b4 {[%clk 0:02:54]}  Bb7 {[%clk 0:02:54]} 11. b5 {[%clk 0:02:51]}  Nd4 {[%clk 0:02:54]} 12. Nxd4 {[%clk 0:02:49]}  Bxg2 {[%clk 0:02:50]} 13. Kxg2 {[%clk 0:02:46]}  cxd4 {[%clk 0:02:50]} 14. Nd5 {[%clk 0:02:46]}  Nxd5 {[%clk 0:02:45]} 15. cxd5 {[%clk 0:02:46]}  Qf5 {[%clk 0:02:43]} 16. Qb3 {[%clk 0:02:46]}  Rac8 {[%clk 0:02:43]} 17. Bd2 {[%clk 0:02:44]}  Rc5 {[%clk 0:02:41]} 18. Rfc1 {[%clk 0:02:40]}  Rfc8 {[%clk 0:02:31]} 19. e4 {[%clk 0:02:37]}  dxe3 {[%clk 0:02:28]} 20. Bxe3 {[%clk 0:02:37]}  Rc3 {[%clk 0:02:23]} 21. Qa4 {[%clk 0:02:25]}  Qxd5+ {[%clk 0:02:18]} 22. Kg1 {[%clk 0:02:24]}  Rxc1+ {[%clk 0:02:08]} 23. Rxc1 {[%clk 0:02:23]}  Rxc1+ {[%clk 0:02:07]} 24. Bxc1 {[%clk 0:02:23]}  Qxd3 {[%clk 0:02:06]} 25. Be3 {[%clk 0:02:18]}  Bf6 {[%clk 0:01:48]} 26. Qxa7 {[%clk 0:02:15]}  Qxb5 {[%clk 0:01:46]} 27. Bxb6 {[%clk 0:02:11]}  Qb1+ {[%clk 0:01:40]} 28. Kg2 {[%clk 0:02:09]}  Qe4+ {[%clk 0:01:40]} 29. Kg1 {[%clk 0:02:09]}  d5 {[%clk 0:01:35]} 30. a4 {[%clk 0:01:57]}  d4 {[%clk 0:01:35]} 31. a5 {[%clk 0:01:54]}  Qe1+ {[%clk 0:01:21]} 32. Kg2 {[%clk 0:01:53]}  d3 {[%clk 0:01:19]} 33. Be3 {[%clk 0:01:03]}  d2 {[%clk 0:01:18]} 34. Bxd2 {[%clk 0:00:59]}  Qxd2 {[%clk 0:01:17]} 35. a6 {[%clk 0:00:55]}  Bd4 {[%clk 0:01:16]} 36. Qxe7 {[%clk 0:00:53]}  Qxf2+ {[%clk 0:01:15]} 37. Kh3 {[%clk 0:00:51]}  Qf1+ {[%clk 0:01:13]} 38. Kg4 {[%clk 0:00:51]}  Qf5+ {[%clk 0:01:12]} 0-1


[Site "https://www.chess.com"]

[Event "Titled Tuesday Blitz April 05 Early 2022"]
[White "Mokshanov, Alexey"]
[Black "Devaev, Alexander"]
[WhiteFideId "24121657"]
[BlackFideId "4169395"]
[WhiteElo "2141"]
[BlackElo "2185"]
[Result "1-0"]
[Round "06"]
[TimeControl "180+1"]
[Date "2022.04.05"]
[WhiteClock "0:00:12"]
[BlackClock "0:00:01"]

1. e4 {[%clk 0:03:00]}  c6 {[%clk 0:02:36]} 2. d4 {[%clk 0:03:00]}  d5 {[%clk 0:02:37]} 3. e5 {[%clk 0:03:01]}  Bf5 {[%clk 0:02:37]} 4. h4 {[%clk 0:03:00]}  Qb6 {[%clk 0:02:37]} 5. g4 {[%clk 0:02:53]}  Bd7 {[%clk 0:02:37]} 6. Nc3 {[%clk 0:02:52]}  e6 {[%clk 0:02:38]} 7. Nf3 {[%clk 0:02:30]}  c5 {[%clk 0:02:32]} 8. Be3 {[%clk 0:02:18]}  Qxb2 {[%clk 0:02:23]} 9. Ne2 {[%clk 0:02:12]}  Qb6 {[%clk 0:02:14]} 10. Bh3 {[%clk 0:02:05]}  Nc6 {[%clk 0:02:11]} 11. O-O {[%clk 0:02:03]}  cxd4 {[%clk 0:02:02]} 12. Nexd4 {[%clk 0:02:01]}  Nxd4 {[%clk 0:02:02]} 13. Bxd4 {[%clk 0:01:59]}  Bc5 {[%clk 0:02:02]} 14. Rb1 {[%clk 0:01:59]}  Qc7 {[%clk 0:02:00]} 15. Bxc5 {[%clk 0:02:00]}  Qxc5 {[%clk 0:02:00]} 16. Rxb7 {[%clk 0:02:00]}  Ne7 {[%clk 0:01:56]} 17. Qd4 {[%clk 0:02:00]}  Qxc2 {[%clk 0:01:36]} 18. Rxa7 {[%clk 0:01:32]}  Rd8 {[%clk 0:01:34]} 19. Qe3 {[%clk 0:01:13]}  Nc6 {[%clk 0:01:22]} 20. Rc7 {[%clk 0:01:11]}  Qxa2 {[%clk 0:01:22]} 21. Qc5 {[%clk 0:01:10]}  Qa4 {[%clk 0:01:05]} 22. Rb1 {[%clk 0:00:47]}  Qe4 {[%clk 0:00:54]} 23. Rb3 {[%clk 0:00:47]}  d4 {[%clk 0:00:25]} 24. Bg2 {[%clk 0:00:17]}  Qd5 {[%clk 0:00:19]} 25. Qa3 {[%clk 0:00:18]}  Qa5 {[%clk 0:00:12]} 26. Qd6 {[%clk 0:00:14]}  Qd5 {[%clk 0:00:12]} 27. Ng5 {[%clk 0:00:11]}  Qxd6 {[%clk 0:00:11]} 28. exd6 {[%clk 0:00:12]}  Ne5 {[%clk 0:00:08]} 29. f4 {[%clk 0:00:10]}  Nxg4 {[%clk 0:00:08]} 30. Rbb7 {[%clk 0:00:11]}  Nf6 {[%clk 0:00:08]} 31. Rxd7 {[%clk 0:00:10]}  Nxd7 {[%clk 0:00:05]} 32. Bc6 {[%clk 0:00:10]}  d3 {[%clk 0:00:04]} 33. Ne4 {[%clk 0:00:10]}  d2 {[%clk 0:00:04]} 34. Nxd2 {[%clk 0:00:10]}  O-O {[%clk 0:00:04]} 35. Bxd7 {[%clk 0:00:10]}  Rb8 {[%clk 0:00:03]} 36. Rxb8 {[%clk 0:00:10]}  Rxb8 {[%clk 0:00:04]} 37. Bc6 {[%clk 0:00:11]}  Kf8 {[%clk 0:00:01]} 38. d7 {[%clk 0:00:11]}  Ke7 {[%clk 0:00:01]} 39. Kf2 {[%clk 0:00:12]}  Rb4 {[%clk 0:00:01]} 40. Ke3 {[%clk 0:00:12]} 1-0


[Site "https://www.chess.com"]